[Event "Early-Titled-Tuesday-Blitz-March-26-2024"]
[Site "Chess.com"]
[Date "2024.03.26"]
[Round "7"]
[White "DrVelja"]
[Black "Rashad_Zeynalli"]
[Result "1-0"]
[WhiteElo "3003"]
[BlackElo "2684"]
[TimeControl "180+1"]
[EndTime "9:15:21 PDT"]
[Termination "DrVelja won by checkmate"]

1. e4 {[%clk 0:03:00.9]} 1... c5 {[%clk 0:02:58.9]} 2. Nf3 {[%clk 0:03:01.4]}
2... d6 {[%clk 0:02:59.3]} 3. Bb5+ {[%clk 0:02:59.1]} 3... Bd7 {[%clk
0:02:58.9]} 4. Be2 {[%clk 0:02:55]} 4... Nf6 {[%clk 0:02:57.3]} 5. Nc3 {[%clk
0:02:55.3]} 5... Nc6 {[%clk 0:02:56.3]} 6. d4 {[%clk 0:02:54.3]} 6... cxd4
{[%clk 0:02:56]} 7. Nxd4 {[%clk 0:02:55.2]} 7... g6 {[%clk 0:02:56.6]} 8. O-O
{[%clk 0:02:55.7]} 8... Bg7 {[%clk 0:02:57.2]} 9. Be3 {[%clk 0:02:55.5]} 9...
O-O {[%clk 0:02:54.7]} 10. Re1 {[%clk 0:02:55.4]} 10... Ng4 {[%clk 0:02:47.5]}
11. Bxg4 {[%clk 0:02:54.4]} 11... Bxd4 {[%clk 0:02:22.9]} 12. Bxd4 {[%clk
0:02:20.2]} 12... Bxg4 {[%clk 0:02:20.7]} 13. f3 {[%clk 0:02:14.6]} 13... Nxd4
{[%clk 0:02:15.9]} 14. Qxd4 {[%clk 0:02:15.4]} 14... Be6 {[%clk 0:02:16]} 15.
Nd5 {[%clk 0:02:15.9]} 15... Bxd5 {[%clk 0:02:15.3]} 16. exd5 {[%clk 0:02:16.8]}
16... Rc8 {[%clk 0:02:06.9]} 17. c3 {[%clk 0:02:10.9]} 17... Rc5 {[%clk
0:02:05.7]} 18. Re2 {[%clk 0:02:04.4]} 18... Qd7 {[%clk 0:01:57.8]} 19. Rae1
{[%clk 0:02:02.5]} 19... Re8 {[%clk 0:01:58.2]} 20. Qh4 {[%clk 0:01:56.5]} 20...
Rxd5 {[%clk 0:01:39.8]} 21. Rxe7 {[%clk 0:01:53.9]} 21... Rxe7 {[%clk
0:01:40.7]} 22. Rxe7 {[%clk 0:01:54.2]} 22... Qd8 {[%clk 0:00:53.2]} 23. Re4
{[%clk 0:00:16.2]} 23... Rd1+ {[%clk 0:00:29.4]} 24. Kf2 {[%clk 0:00:16.7]}
24... Rd2+ {[%clk 0:00:25.3]} 25. Kf1 {[%clk 0:00:10.9]} 25... Qb6 {[%clk
0:00:17.9]} 26. Re2 {[%clk 0:00:03.7]} 26... Qb5 {[%clk 0:00:14]} 27. c4 {[%clk
0:00:02.3]} 27... Rd1+ {[%clk 0:00:12.9]} 28. Kf2 {[%clk 0:00:02.7]} 28... Qc5+
{[%clk 0:00:12.9]} 29. Kg3 {[%clk 0:00:03]} 29... Rd4 {[%clk 0:00:10.6]} 30. Qf6
{[%clk 0:00:03.2]} 30... Qc8 {[%clk 0:00:07.8]} 31. Qxd4 {[%clk 0:00:03.3]}
31... Qc7 {[%clk 0:00:07.8]} 32. Re8# {[%clk 0:00:03.3]} 1-0

[Event "Early-Titled-Tuesday-Blitz-March-26-2024"]
[Site "Chess.com"]
[Date "2024.03.26"]
[Round "7"]
[White "suyu28"]
[Black "FormerProdigy"]
[Result "0-1"]
[WhiteElo "2855"]
[BlackElo "2985"]
[TimeControl "180+1"]
[EndTime "9:15:22 PDT"]
[Termination "FormerProdigy won by resignation"]

1. e4 {[%clk 0:02:54.7]} 1... c6 {[%clk 0:02:59.7]} 2. Nf3 {[%clk 0:02:55.4]}
2... d5 {[%clk 0:03:00.6]} 3. Nc3 {[%clk 0:02:55.3]} 3... Bg4 {[%clk 0:02:59.5]}
4. h3 {[%clk 0:02:55.3]} 4... Bxf3 {[%clk 0:02:59.9]} 5. Qxf3 {[%clk 0:02:55.7]}
5... e6 {[%clk 0:03:00.4]} 6. Be2 {[%clk 0:02:45.8]} 6... d4 {[%clk 0:02:50.1]}
7. Nb1 {[%clk 0:02:36.5]} 7... Bd6 {[%clk 0:02:50.5]} 8. d3 {[%clk 0:02:28.5]}
8... h5 {[%clk 0:02:49.8]} 9. Nd2 {[%clk 0:02:13.2]} 9... Nd7 {[%clk 0:02:46.8]}
10. h4 {[%clk 0:02:09]} 10... Ne5 {[%clk 0:02:41.6]} 11. Qh3 {[%clk 0:02:07]}
11... Nf6 {[%clk 0:02:42]} 12. g3 {[%clk 0:01:59.7]} 12... Neg4 {[%clk
0:02:27.1]} 13. a3 {[%clk 0:01:51.3]} 13... b5 {[%clk 0:02:24.2]} 14. Nf1 {[%clk
0:01:47.5]} 14... Qa5+ {[%clk 0:01:53]} 15. Bd2 {[%clk 0:01:45.4]} 15... b4
{[%clk 0:01:53.6]} 16. a4 {[%clk 0:01:37.8]} 16... Qc5 {[%clk 0:01:48.4]} 17.
Rc1 {[%clk 0:01:23.8]} 17... b3 {[%clk 0:01:43.3]} 18. cxb3 {[%clk 0:01:13.9]}
18... Qb6 {[%clk 0:01:43.8]} 19. f3 {[%clk 0:01:01.8]} 19... Ne3 {[%clk
0:01:38.8]} 20. Nxe3 {[%clk 0:00:57.3]} 20... dxe3 {[%clk 0:01:39.7]} 21. Bc3
{[%clk 0:00:57.8]} 21... Bb4 {[%clk 0:01:28.8]} 22. O-O {[%clk 0:00:56.4]} 22...
Bxc3 {[%clk 0:01:28.8]} 23. Rxc3 {[%clk 0:00:56.1]} 23... O-O {[%clk 0:01:26]}
24. Rfc1 {[%clk 0:00:45.4]} 24... Qd4 {[%clk 0:01:20.6]} 25. R1c2 {[%clk
0:00:39.4]} 25... Rab8 {[%clk 0:01:19.8]} 26. f4 {[%clk 0:00:33.5]} 26... Rb4
{[%clk 0:01:14.6]} 27. Qf1 {[%clk 0:00:11.7]} 27... Rfb8 {[%clk 0:01:07.9]} 28.
Qc1 {[%clk 0:00:05.2]} 28... Rxb3 {[%clk 0:01:07.1]} 29. Rxb3 {[%clk 0:00:05.4]}
29... Rxb3 {[%clk 0:01:08]} 30. Kg2 {[%clk 0:00:06.1]} 30... g6 {[%clk
0:00:49.3]} 31. Kf1 {[%clk 0:00:03.3]} 31... Rxd3 {[%clk 0:00:48.6]} 32. Bxd3
{[%clk 0:00:02.4]} 32... Qxd3+ {[%clk 0:00:49.5]} 33. Re2 {[%clk 0:00:03.1]}
33... Nxe4 {[%clk 0:00:46.5]} 34. Qxe3 {[%clk 0:00:01.7]} 34... Nxg3+ {[%clk
0:00:47]} 35. Kf2 {[%clk 0:00:02.2]} 35... Qxe2+ {[%clk 0:00:46.6]} 36. Qxe2
{[%clk 0:00:02.7]} 36... Nxe2 {[%clk 0:00:47.5]} 37. Kxe2 {[%clk 0:00:03.6]}
37... f6 {[%clk 0:00:46.3]} 38. Kd3 {[%clk 0:00:04]} 38... Kf7 {[%clk
0:00:44.8]} 39. Kd4 {[%clk 0:00:04.5]} 39... g5 {[%clk 0:00:45.3]} 40. fxg5
{[%clk 0:00:04.6]} 40... fxg5 {[%clk 0:00:46.2]} 41. hxg5 {[%clk 0:00:05.2]}
41... Kg6 {[%clk 0:00:44.3]} 42. b4 {[%clk 0:00:04.1]} 42... h4 {[%clk
0:00:45.2]} 43. b5 {[%clk 0:00:02.1]} 43... cxb5 {[%clk 0:00:46.1]} 44. axb5
{[%clk 0:00:02.5]} 44... h3 {[%clk 0:00:46.4]} 45. Ke3 {[%clk 0:00:03.1]} 45...
h2 {[%clk 0:00:46.3]} 46. b6 {[%clk 0:00:04]} 46... h1=Q {[%clk 0:00:47]} 47.
bxa7 {[%clk 0:00:03.8]} 47... Qa8 {[%clk 0:00:47.2]} 48. Kf4 {[%clk 0:00:04.2]}
48... Qxa7 {[%clk 0:00:47.9]} 49. Kg4 {[%clk 0:00:04.8]} 49... Qd4+ {[%clk
0:00:48.1]} 50. Kh3 {[%clk 0:00:04.8]} 50... Kxg5 {[%clk 0:00:49]} 51. Kh2
{[%clk 0:00:05.2]} 51... Qe3 {[%clk 0:00:48.6]} 52. Kh1 {[%clk 0:00:05.5]} 52...
Kg4 {[%clk 0:00:49.5]} 0-1

[Event "Early-Titled-Tuesday-Blitz-March-26-2024"]
[Site "Chess.com"]
[Date "2024.03.26"]
[Round "7"]
[White "sokidze"]
[Black "Barmen_EV"]
[Result "1-0"]
[WhiteElo "2795"]
[BlackElo "2573"]
[TimeControl "180+1"]
[EndTime "9:15:22 PDT"]
[Termination "sokidze won by checkmate"]

1. d4 {[%clk 0:03:00.9]} 1... f5 {[%clk 0:02:59.3]} 2. Bg5 {[%clk 0:02:59.8]}
2... g6 {[%clk 0:02:59.3]} 3. Nc3 {[%clk 0:02:56.4]} 3... Bg7 {[%clk 0:02:59.6]}
4. e3 {[%clk 0:02:51.1]} 4... Nf6 {[%clk 0:02:58.9]} 5. Bc4 {[%clk 0:02:44.1]}
5... e6 {[%clk 0:02:59.3]} 6. h4 {[%clk 0:02:39.4]} 6... h6 {[%clk 0:02:59.2]}
7. Bf4 {[%clk 0:02:39]} 7... O-O {[%clk 0:02:57.6]} 8. Nf3 {[%clk 0:02:38.6]}
8... d6 {[%clk 0:02:54.2]} 9. Qe2 {[%clk 0:02:36.7]} 9... Qe8 {[%clk 0:02:37.1]}
10. O-O-O {[%clk 0:02:33.7]} 10... Bd7 {[%clk 0:02:27.1]} 11. Bb3 {[%clk
0:01:52.8]} 11... Ne4 {[%clk 0:02:26.2]} 12. Nxe4 {[%clk 0:01:48.2]} 12... fxe4
{[%clk 0:02:27.1]} 13. Nd2 {[%clk 0:01:48.7]} 13... a5 {[%clk 0:02:06.8]} 14. a3
{[%clk 0:01:40.5]} 14... d5 {[%clk 0:01:40.3]} 15. Bxc7 {[%clk 0:01:20.9]} 15...
Na6 {[%clk 0:01:32.6]} 16. Bxa5 {[%clk 0:01:17.9]} 16... Nc5 {[%clk 0:01:33.1]}
17. Bb4 {[%clk 0:01:14.3]} 17... Nxb3+ {[%clk 0:01:33.2]} 18. Nxb3 {[%clk
0:01:14.6]} 18... Rf7 {[%clk 0:01:32.2]} 19. f4 {[%clk 0:01:05.5]} 19... Bb5
{[%clk 0:01:20.7]} 20. Qg4 {[%clk 0:00:53.4]} 20... Rc8 {[%clk 0:01:03.5]} 21.
Kb1 {[%clk 0:00:42.4]} 21... Rfc7 {[%clk 0:00:52.9]} 22. c3 {[%clk 0:00:41.8]}
22... Ba4 {[%clk 0:00:36]} 23. Ka2 {[%clk 0:00:41.6]} 23... h5 {[%clk
0:00:22.3]} 24. Qe2 {[%clk 0:00:42]} 24... Bb5 {[%clk 0:00:20.8]} 25. Qc2 {[%clk
0:00:38.8]} 25... Bc4 {[%clk 0:00:21.4]} 26. Kb1 {[%clk 0:00:39.1]} 26... b6
{[%clk 0:00:14.1]} 27. Nc1 {[%clk 0:00:28.3]} 27... Bb5 {[%clk 0:00:08.2]} 28.
Rdg1 {[%clk 0:00:23.7]} 28... Bf8 {[%clk 0:00:07.2]} 29. Bxf8 {[%clk 0:00:22.6]}
29... Kxf8 {[%clk 0:00:08.1]} 30. Qb3 {[%clk 0:00:21.2]} 30... Ba4 {[%clk
0:00:05.4]} 31. Qb4+ {[%clk 0:00:16.3]} 31... Kf7 {[%clk 0:00:05]} 32. g4 {[%clk
0:00:17]} 32... Rc4 {[%clk 0:00:04.5]} 33. Qd6 {[%clk 0:00:16.9]} 33... R8c6
{[%clk 0:00:01.6]} 34. Qe5 {[%clk 0:00:17]} 34... hxg4 {[%clk 0:00:01.8]} 35. h5
{[%clk 0:00:16.7]} 35... Qc8 {[%clk 0:00:01.1]} 36. hxg6+ {[%clk 0:00:16.6]}
36... Kxg6 {[%clk 0:00:01.5]} 37. Rxg4+ {[%clk 0:00:16.6]} 37... Kf7 {[%clk
0:00:01.9]} 38. Rh7+ {[%clk 0:00:16.8]} 38... Ke8 {[%clk 0:00:02.8]} 39. Rg8#
{[%clk 0:00:17.2]} 1-0

[Event "Early-Titled-Tuesday-Blitz-March-26-2024"]
[Site "Chess.com"]
[Date "2024.03.26"]
[Round "7"]
[White "RobertDowneyJr0111"]
[Black "Misterfox120"]
[Result "1-0"]
[WhiteElo "2642"]
[BlackElo "2472"]
[TimeControl "180+1"]
[EndTime "9:15:22 PDT"]
[Termination "RobertDowneyJr0111 won on time"]

1. e4 {[%clk 0:03:00.9]} 1... c6 {[%clk 0:02:59.9]} 2. Nf3 {[%clk 0:03:00.6]}
2... d5 {[%clk 0:03:00.8]} 3. Nc3 {[%clk 0:03:01.5]} 3... Bg4 {[%clk 0:03:00.9]}
4. h3 {[%clk 0:03:01.5]} 4... Bxf3 {[%clk 0:03:01.5]} 5. Qxf3 {[%clk 0:03:02.4]}
5... e6 {[%clk 0:03:01.9]} 6. Be2 {[%clk 0:03:01.8]} 6... Bc5 {[%clk 0:03:01.3]}
7. Na4 {[%clk 0:02:58.9]} 7... Bd4 {[%clk 0:02:39.9]} 8. c3 {[%clk 0:02:58.6]}
8... Bf6 {[%clk 0:02:33.3]} 9. d4 {[%clk 0:02:58.4]} 9... dxe4 {[%clk
0:02:33.4]} 10. Qxe4 {[%clk 0:02:58.1]} 10... Qd5 {[%clk 0:02:32.2]} 11. Bf3
{[%clk 0:02:48.9]} 11... Qxe4+ {[%clk 0:02:28.3]} 12. Bxe4 {[%clk 0:02:49.8]}
12... Nd7 {[%clk 0:02:27.2]} 13. Bf4 {[%clk 0:02:44.8]} 13... Be7 {[%clk
0:02:21.6]} 14. O-O {[%clk 0:02:39.7]} 14... Ngf6 {[%clk 0:02:20.7]} 15. Bf3
{[%clk 0:02:38.7]} 15... Nd5 {[%clk 0:02:16.1]} 16. Be3 {[%clk 0:02:08.2]} 16...
Nxe3 {[%clk 0:01:39.2]} 17. fxe3 {[%clk 0:02:09.1]} 17... O-O {[%clk 0:01:37.9]}
18. b3 {[%clk 0:02:07.1]} 18... e5 {[%clk 0:01:30.3]} 19. c4 {[%clk 0:02:01]}
19... exd4 {[%clk 0:01:27.3]} 20. exd4 {[%clk 0:02:01.9]} 20... Bf6 {[%clk
0:01:27.4]} 21. Rad1 {[%clk 0:02:01.4]} 21... Rad8 {[%clk 0:01:20.3]} 22. c5
{[%clk 0:01:34.4]} 22... Rfe8 {[%clk 0:00:46]} 23. d5 {[%clk 0:01:20]} 23... Ne5
{[%clk 0:00:32.3]} 24. d6 {[%clk 0:01:04.3]} 24... Nxf3+ {[%clk 0:00:25.4]} 25.
Rxf3 {[%clk 0:01:05.2]} 25... Rd7 {[%clk 0:00:23]} 26. Kf2 {[%clk 0:00:52.8]}
26... Re6 {[%clk 0:00:18.7]} 27. Re3 {[%clk 0:00:38]} 27... Be5 {[%clk
0:00:07.7]} 28. b4 {[%clk 0:00:20.2]} 28... b5 {[%clk 0:00:05.7]} 29. Nc3 {[%clk
0:00:18.1]} 29... Bf6 {[%clk 0:00:01.4]} 30. Rxe6 {[%clk 0:00:17.5]} 30... fxe6
{[%clk 0:00:02.3]} 31. Ne4 {[%clk 0:00:18]} 31... Kf7 {[%clk 0:00:02.3]} 32. a4
{[%clk 0:00:17.6]} 32... a6 {[%clk 0:00:02.1]} 33. axb5 {[%clk 0:00:18.1]} 33...
axb5 {[%clk 0:00:03]} 34. Rd3 {[%clk 0:00:18.3]} 34... e5 {[%clk 0:00:02.2]} 35.
Ra3 {[%clk 0:00:18]} 35... Ke6 {[%clk 0:00:02.7]} 36. Ke3 {[%clk 0:00:17.9]}
36... g6 {[%clk 0:00:01.7]} 37. Kd3 {[%clk 0:00:17.7]} 37... Bg7 {[%clk
0:00:01.9]} 38. Ra6 {[%clk 0:00:18.3]} 1-0

[Event "Early-Titled-Tuesday-Blitz-March-26-2024"]
[Site "Chess.com"]
[Date "2024.03.26"]
[Round "7"]
[White "rionelG"]
[Black "amanjazu"]
[Result "0-1"]
[WhiteElo "2204"]
[BlackElo "2525"]
[TimeControl "180+1"]
[EndTime "9:15:23 PDT"]
[Termination "amanjazu won by resignation"]

1. e4 {[%clk 0:03:00.9]} 1... Nf6 {[%clk 0:02:50.9]} 2. d3 {[%clk 0:02:43.3]}
2... d6 {[%clk 0:02:50]} 3. Nf3 {[%clk 0:02:39]} 3... g6 {[%clk 0:02:49.6]} 4.
g3 {[%clk 0:02:39]} 4... Bg7 {[%clk 0:02:49.9]} 5. Bg2 {[%clk 0:02:39.9]} 5...
O-O {[%clk 0:02:50.8]} 6. O-O {[%clk 0:02:40.2]} 6... c5 {[%clk 0:02:51.4]} 7.
Re1 {[%clk 0:02:37.1]} 7... Nc6 {[%clk 0:02:50.3]} 8. c3 {[%clk 0:02:37]} 8...
e5 {[%clk 0:02:48.1]} 9. a4 {[%clk 0:02:34.6]} 9... h6 {[%clk 0:02:47.8]} 10.
Nbd2 {[%clk 0:02:34.8]} 10... Be6 {[%clk 0:02:41.5]} 11. Nc4 {[%clk 0:02:33.2]}
11... a6 {[%clk 0:02:30.6]} 12. Qc2 {[%clk 0:02:27]} 12... Rc8 {[%clk
0:02:25.9]} 13. Nfd2 {[%clk 0:02:16.5]} 13... b5 {[%clk 0:02:25.2]} 14. axb5
{[%clk 0:02:16.1]} 14... axb5 {[%clk 0:02:26.1]} 15. Ne3 {[%clk 0:02:14.6]}
15... Ne7 {[%clk 0:02:13.9]} 16. h3 {[%clk 0:02:13.1]} 16... Qd7 {[%clk
0:02:13.1]} 17. Kh2 {[%clk 0:02:12.7]} 17... Rfe8 {[%clk 0:02:08.3]} 18. Rd1
{[%clk 0:01:43.8]} 18... d5 {[%clk 0:02:08]} 19. exd5 {[%clk 0:01:42.7]} 19...
Nexd5 {[%clk 0:02:08.9]} 20. Ne4 {[%clk 0:01:42.1]} 20... Qe7 {[%clk 0:01:44]}
21. Ra5 {[%clk 0:01:30.1]} 21... Nxe3 {[%clk 0:01:32.5]} 22. Bxe3 {[%clk
0:01:25.8]} 22... Bd7 {[%clk 0:01:32.6]} 23. Nxf6+ {[%clk 0:01:15.9]} 23... Qxf6
{[%clk 0:01:30.6]} 24. Qb3 {[%clk 0:01:01.9]} 24... c4 {[%clk 0:01:02.5]} 25.
dxc4 {[%clk 0:00:52.8]} 25... bxc4 {[%clk 0:01:03.4]} 26. Qb7 {[%clk 0:00:33.6]}
26... Bf5 {[%clk 0:00:59.7]} 27. Ra6 {[%clk 0:00:29.7]} 27... Qe7 {[%clk
0:00:57.5]} 28. Qxe7 {[%clk 0:00:25.3]} 28... Rxe7 {[%clk 0:00:58.4]} 29. Rad6
{[%clk 0:00:20.4]} 29... Bd3 {[%clk 0:00:52.4]} 30. Bd5 {[%clk 0:00:16.8]} 30...
e4 {[%clk 0:00:51.5]} 31. Kg2 {[%clk 0:00:10.7]} 31... Rb8 {[%clk 0:00:51]} 32.
Rd2 {[%clk 0:00:07.9]} 32... Bf8 {[%clk 0:00:50.4]} 33. Rxg6+ {[%clk 0:00:07.6]}
33... Kh7 {[%clk 0:00:48.8]} 34. Ra6 {[%clk 0:00:08]} 34... Rb5 {[%clk
0:00:43.8]} 35. Bc6 {[%clk 0:00:06.9]} 35... Rbe5 {[%clk 0:00:42.7]} 36. Bd4
{[%clk 0:00:05.7]} 36... R5e6 {[%clk 0:00:42.9]} 37. Bb5 {[%clk 0:00:05]} 37...
Rxa6 {[%clk 0:00:39.5]} 38. Bxa6 {[%clk 0:00:05.9]} 38... Bg7 {[%clk 0:00:40.1]}
39. Bxg7 {[%clk 0:00:05]} 39... Kxg7 {[%clk 0:00:41]} 40. Bb5 {[%clk 0:00:03.4]}
40... Rb7 {[%clk 0:00:41.2]} 41. Ba4 {[%clk 0:00:03.3]} 41... Ra7 {[%clk
0:00:41.2]} 42. Bd1 {[%clk 0:00:03.6]} 42... Ra1 {[%clk 0:00:41]} 43. f3 {[%clk
0:00:03.1]} 43... e3 {[%clk 0:00:39.7]} 44. Be2 {[%clk 0:00:01.6]} 44... exd2
{[%clk 0:00:39.4]} 45. Bxd3 {[%clk 0:00:01.8]} 45... cxd3 {[%clk 0:00:40.3]} 0-1

[Event "Early-Titled-Tuesday-Blitz-March-26-2024"]
[Site "Chess.com"]
[Date "2024.03.26"]
[Round "7"]
[White "yaguigor"]
[Black "arnash_bauyrzhan"]
[Result "1-0"]
[WhiteElo "2580"]
[BlackElo "2373"]
[TimeControl "180+1"]
[EndTime "9:15:24 PDT"]
[Termination "yaguigor won by resignation"]

1. d4 {[%clk 0:02:52.7]} 1... d5 {[%clk 0:02:59.6]} 2. c4 {[%clk 0:02:51.6]}
2... e6 {[%clk 0:02:59.7]} 3. Nc3 {[%clk 0:02:50.5]} 3... Be7 {[%clk 0:02:59.6]}
4. Nf3 {[%clk 0:02:49.3]} 4... Nf6 {[%clk 0:02:59.4]} 5. Bf4 {[%clk 0:02:48.4]}
5... O-O {[%clk 0:02:59.2]} 6. e3 {[%clk 0:02:47.7]} 6... b6 {[%clk 0:02:58]} 7.
cxd5 {[%clk 0:02:46.7]} 7... Nxd5 {[%clk 0:02:57.6]} 8. Nxd5 {[%clk 0:02:46.3]}
8... exd5 {[%clk 0:02:57.7]} 9. Bd3 {[%clk 0:02:45.8]} 9... h6 {[%clk
0:02:55.3]} 10. O-O {[%clk 0:02:44.3]} 10... Bd6 {[%clk 0:02:53]} 11. Bxd6
{[%clk 0:02:41.3]} 11... Qxd6 {[%clk 0:02:52.8]} 12. Rc1 {[%clk 0:02:40.3]}
12... Bg4 {[%clk 0:02:50.7]} 13. h3 {[%clk 0:02:32.6]} 13... Bxf3 {[%clk
0:02:48.6]} 14. Qxf3 {[%clk 0:02:32.1]} 14... Nd7 {[%clk 0:02:43]} 15. a3 {[%clk
0:02:05.3]} 15... c5 {[%clk 0:02:40]} 16. dxc5 {[%clk 0:01:57.6]} 16... bxc5
{[%clk 0:02:39.8]} 17. Rfd1 {[%clk 0:01:58]} 17... Ne5 {[%clk 0:02:25.3]} 18.
Qg3 {[%clk 0:01:50.6]} 18... Rad8 {[%clk 0:02:21.5]} 19. Be4 {[%clk 0:01:41.7]}
19... d4 {[%clk 0:02:15]} 20. b4 {[%clk 0:01:37.5]} 20... d3 {[%clk 0:01:08]}
21. Rxc5 {[%clk 0:01:30.8]} 21... Rfe8 {[%clk 0:00:53.1]} 22. f4 {[%clk
0:01:25.1]} 22... Nd7 {[%clk 0:00:35.3]} 23. Rxd3 {[%clk 0:01:07.9]} 23... Qb6
{[%clk 0:00:34.7]} 24. Rc6 {[%clk 0:00:59.2]} 24... Qb5 {[%clk 0:00:30.6]} 25.
Qf3 {[%clk 0:00:50.6]} 25... Ne5 {[%clk 0:00:23.6]} 26. fxe5 {[%clk 0:00:46.8]}
26... Rxd3 {[%clk 0:00:23.6]} 27. Bxd3 {[%clk 0:00:37.5]} 27... Qxd3 {[%clk
0:00:23.7]} 28. Rc7 {[%clk 0:00:38]} 28... Qg6 {[%clk 0:00:14.7]} 29. Qf4 {[%clk
0:00:31.5]} 29... a5 {[%clk 0:00:11.2]} 30. bxa5 {[%clk 0:00:28.3]} 30... f6
{[%clk 0:00:09.1]} 31. Qc4+ {[%clk 0:00:26.5]} 31... Kh7 {[%clk 0:00:09]} 32. e6
{[%clk 0:00:23.9]} 32... Qb1+ {[%clk 0:00:08.2]} 33. Kh2 {[%clk 0:00:23]} 33...
Qb8 {[%clk 0:00:07.9]} 34. Qc2+ {[%clk 0:00:15.4]} 34... Kh8 {[%clk 0:00:05.9]}
35. g3 {[%clk 0:00:15.7]} 35... Rxe6 {[%clk 0:00:04.4]} 36. Rc8+ {[%clk
0:00:15.2]} 1-0

[Event "Early-Titled-Tuesday-Blitz-March-26-2024"]
[Site "Chess.com"]
[Date "2024.03.26"]
[Round "7"]
[White "Khromkin"]
[Black "dodorox"]
[Result "1-0"]
[WhiteElo "2428"]
[BlackElo "2126"]
[TimeControl "180+1"]
[EndTime "9:15:24 PDT"]
[Termination "Khromkin won on time"]

1. d4 {[%clk 0:02:52.3]} 1... Nf6 {[%clk 0:02:58.5]} 2. c4 {[%clk 0:02:53.2]}
2... e6 {[%clk 0:02:58.3]} 3. Nf3 {[%clk 0:02:54.1]} 3... d5 {[%clk 0:02:55.2]}
4. Nc3 {[%clk 0:02:53.6]} 4... Bb4 {[%clk 0:02:55.7]} 5. Bg5 {[%clk 0:02:53.6]}
5... h6 {[%clk 0:02:55]} 6. Bxf6 {[%clk 0:02:53.2]} 6... Qxf6 {[%clk 0:02:55.9]}
7. Qb3 {[%clk 0:02:53.7]} 7... Bxc3+ {[%clk 0:02:38.6]} 8. Qxc3 {[%clk
0:02:54.6]} 8... Nc6 {[%clk 0:02:31.5]} 9. e3 {[%clk 0:02:55.1]} 9... O-O {[%clk
0:02:30.6]} 10. a3 {[%clk 0:02:51.1]} 10... Re8 {[%clk 0:02:20.7]} 11. Rd1
{[%clk 0:02:51.5]} 11... Bd7 {[%clk 0:01:46.6]} 12. Be2 {[%clk 0:02:43.3]} 12...
Rad8 {[%clk 0:01:44.3]} 13. O-O {[%clk 0:02:43.1]} 13... dxc4 {[%clk 0:01:38.1]}
14. Bxc4 {[%clk 0:02:42.5]} 14... e5 {[%clk 0:01:38.5]} 15. dxe5 {[%clk
0:02:36]} 15... Nxe5 {[%clk 0:01:37.7]} 16. Nxe5 {[%clk 0:02:35.7]} 16... Qxe5
{[%clk 0:01:37.6]} 17. Qb3 {[%clk 0:02:21.2]} 17... Be6 {[%clk 0:01:13.3]} 18.
Bxe6 {[%clk 0:02:15.4]} 18... Qxe6 {[%clk 0:01:11.3]} 19. Qxb7 {[%clk
0:02:10.3]} 19... Qb6 {[%clk 0:00:59.4]} 20. Qxb6 {[%clk 0:02:04.2]} 20... cxb6
{[%clk 0:00:55.3]} 21. g3 {[%clk 0:01:53.5]} 21... Kf8 {[%clk 0:00:55.1]} 22.
Kg2 {[%clk 0:01:52.7]} 22... Ke7 {[%clk 0:00:55.3]} 23. Kf3 {[%clk 0:01:52.2]}
23... Rxd1 {[%clk 0:00:52.1]} 24. Rxd1 {[%clk 0:01:51.4]} 24... Rc8 {[%clk
0:00:52.8]} 25. Rd2 {[%clk 0:01:51.3]} 25... Rc4 {[%clk 0:00:52.1]} 26. h4
{[%clk 0:01:49.3]} 26... g6 {[%clk 0:00:51.3]} 27. e4 {[%clk 0:01:40.7]} 27...
h5 {[%clk 0:00:49.7]} 28. Ke3 {[%clk 0:01:41]} 28... Rc1 {[%clk 0:00:46.3]} 29.
Kd4 {[%clk 0:01:38.1]} 29... Rc7 {[%clk 0:00:42.7]} 30. Ke5 {[%clk 0:01:35.4]}
30... Rc5+ {[%clk 0:00:41.9]} 31. Kf4 {[%clk 0:01:35.9]} 31... Rc4 {[%clk
0:00:33]} 32. f3 {[%clk 0:01:35.7]} 32... Rc5 {[%clk 0:00:32.1]} 33. g4 {[%clk
0:01:33.8]} 33... hxg4 {[%clk 0:00:23.9]} 34. fxg4 {[%clk 0:01:33.5]} 34... Rc1
{[%clk 0:00:24]} 35. Rh2 {[%clk 0:01:29.7]} 35... Rf1+ {[%clk 0:00:19.9]} 36.
Kg5 {[%clk 0:01:16.8]} 36... Re1 {[%clk 0:00:19.9]} 37. h5 {[%clk 0:01:17.1]}
37... gxh5 {[%clk 0:00:20]} 38. gxh5 {[%clk 0:01:17.6]} 38... Kf8 {[%clk
0:00:18.3]} 39. h6 {[%clk 0:01:17.5]} 39... Kg8 {[%clk 0:00:15.8]} 40. h7+
{[%clk 0:01:16.9]} 40... Kh8 {[%clk 0:00:15]} 41. Kf5 {[%clk 0:01:17.4]} 41...
Rf1+ {[%clk 0:00:14.9]} 42. Ke5 {[%clk 0:01:17.5]} 42... Re1 {[%clk 0:00:14.7]}
43. Rh3 {[%clk 0:01:11]} 43... Re2 {[%clk 0:00:10.9]} 44. b4 {[%clk 0:01:11.1]}
44... a5 {[%clk 0:00:10]} 45. bxa5 {[%clk 0:01:07.2]} 45... bxa5 {[%clk
0:00:10.9]} 46. Kd5 {[%clk 0:01:06.4]} 46... a4 {[%clk 0:00:09.6]} 47. e5 {[%clk
0:01:03.2]} 47... Re1 {[%clk 0:00:08.5]} 48. Rh4 {[%clk 0:01:01.8]} 48... Re3
{[%clk 0:00:06.5]} 49. Rxa4 {[%clk 0:01:01.3]} 49... Kxh7 {[%clk 0:00:06.9]} 50.
Ra8 {[%clk 0:01:00.5]} 50... Kg7 {[%clk 0:00:05.3]} 51. a4 {[%clk 0:01:01]}
51... Ra3 {[%clk 0:00:04.7]} 52. a5 {[%clk 0:01:01.5]} 52... Ra4 {[%clk
0:00:03.7]} 53. a6 {[%clk 0:01:00.2]} 53... Ra5+ {[%clk 0:00:03.4]} 54. Kc6
{[%clk 0:00:58.7]} 54... Ra4 {[%clk 0:00:03.3]} 55. Kb6 {[%clk 0:00:56.3]} 1-0